bitfinex-derivatives/quotes_SOLF0:USTF0_20251222
["timestamp","ask_amount","ask_price","bid_price","bid_amount"]
[1766430927504,0.05692077,125.78,125.74,21.67516065]
[1766430929800,7.21522077,125.78,125.74,21.67516065]
[1766430931603,7.1587,125.77,125.74,0.05516065]
[1766430933596,24.71546826,125.78,125.71,115.56]
[1766430933597,24.65854749,125.76,125.71,115.56]
[1766430933905,2.42854749,125.74,125.69,21.62]
[1766430934600,0.05741972,125.73,125.7,0.06052174]
[1766430935111,20.94741972,125.73,125.7,0.06052174]
[1766430935292,2.42854749,125.72,125.67,22.03]
[1766430936099,20.94741972,125.73,125.67,22.03]
[1766430936303,20.94741972,125.73,125.69,0.05121776]
[1766430936605,0.05741972,125.73,125.69,0.05121776]
[1766430938999,0.05741972,125.73,125.69,21.51121776]
[1766430940607,9.58804749,125.76,125.7,21.46]
[1766430940793,2.42854749,125.76,125.7,21.46]
[1766430941708,0.0597915,125.74,125.72,0.05118435]
[1766430941902,93.94,125.77,125.72,21.51118435]
[1766430942103,2.42854749,125.78,125.72,21.51118435]
[1766430942900,0.05161063,125.76,125.72,21.51118435]
[1766430945801,0.00161063,125.76,125.73,21.46]
[1766430946004,2.42854749,125.82,125.73,23.88854749]
[1766430946404,7.1559,125.82,125.76,21.46]
[1766430947007,0.02202019,125.8,125.78,0.05813939]
[1766430947408,0.00202019,125.8,125.78,0.05813939]
[1766430948818,0.00202019,125.8,125.78,21.51813939]
[1766430949205,2.42854749,125.84,125.78,21.51813939]
[1766430949720,93.94,125.86,125.78,21.51813939]
[1766430949920,93.94,125.86,125.78,21.46]
[1766430950122,93.94,125.86,125.81,0.05797716]
[1766430951121,23.39854749,125.87,125.81,21.51797716]
[1766430951506,2.42854749,125.88,125.81,21.51797716]
[1766430951712,2.42854749,125.9,125.82,21.46]
[1766430951910,2.42854749,125.9,125.85,0.05097856]
[1766430952227,9.58004749,125.9,125.85,0.05097856]
[1766430952524,23.39854749,125.9,125.85,0.05097856]
[1766430952919,23.39854749,125.9,125.85,0.00097856]
[1766430952920,23.39854749,125.88,125.85,0.00097856]
[1766430953426,2.42854749,125.88,125.85,0.00097856]
[1766430953918,0.05,125.88,125.85,0.00097856]
[1766430954511,2.42854749,125.87,125.81,21.46]
[1766430955528,0.05097856,125.85,125.83,0.05631828]
[1766430956723,2.42854749,125.89,125.83,21.51631828]
[1766430957026,2.42854749,125.89,125.83,28.67151828]
[1766430958320,2.42854749,125.9,125.84,28.6145]
[1766430958522,2.42854749,125.9,125.86,0.05210184]
[1766430959123,23.39854749,125.9,125.86,0.05210184]
[1766430959330,2.42854749,125.88,125.84,21.46]
[1766430960033,24.75952517,125.9,125.84,21.46]
[1766430960242,0.05210184,125.88,125.86,0.05118132]
[1766430961531,0.05210184,125.88,125.82,28.6154]
[1766430961532,0.05210184,125.88,125.82,21.46]
[1766430962527,0.05210184,125.88,125.84,0.05896069]
[1766430963133,0.00210184,125.88,125.84,21.51896069]
[1766430965333,0.00210184,125.88,125.84,0.05896069]
[1766430966127,10.94272517,125.87,125.82,21.46]
[1766430966527,0.00210184,125.88,125.82,21.46]
[1766430967429,0.00210184,125.88,125.84,0.05810298]
[1766430967746,7.1531,125.87,125.84,0.05810298]
[1766430974542,21.55210184,125.88,125.84,0.05810298]
[1766430974731,0.00210184,125.88,125.84,0.05810298]
[1766430976939,0.00210184,125.88,125.84,21.82810298]
[1766430977843,0.00210184,125.88,125.84,0.05810298]
[1766430979340,7.15470184,125.88,125.84,0.05810298]
[1766430980555,7.1531,125.87,125.84,0.05810298]
[1766430980854,25.33952517,125.86,125.75,21.77]
[1766430981046,25.33952517,125.86,125.76,21.77]
[1766430981253,93.86,125.85,125.76,21.77]
[1766430981965,0.05142256,125.82,125.79,0.05550151]
[1766430982648,0.05142256,125.82,125.79,21.82550151]
[1766430983349,115.41,125.86,125.79,21.82550151]
[1766430984147,0.05880086,125.84,125.79,21.82550151]
[1766430984456,0.05880086,125.84,125.79,28.98310151]
[1766430987139,0.05880086,125.84,125.8,28.9269]
[1766430987540,10.94262517,125.87,125.81,21.77]
[1766430987541,97.66952517,125.87,125.81,21.77]
[1766430987744,21.55,125.88,125.82,28.9255]
[1766430988640,0.05995023,125.86,125.84,0.0607186]
[1766431001360,0.05995023,125.86,125.82,21.77]
[1766431001765,0.05995023,125.86,125.82,28.9257]
[1766431002365,0.05995023,125.86,125.83,0.05444208]
[1766431003759,0.05995023,125.86,125.83,22.67444208]
[1766431003957,119.49952517,125.9,125.83,29.82974208]
[1766431004161,21.85,125.89,125.83,29.7753]
[1766431005060,0.05107452,125.87,125.85,0.05163485]
[1766431019472,7.20417452,125.87,125.85,0.05163485]
[1766431019767,21.90107452,125.87,125.81,22.62]
[1766431020468,24.27567688,125.86,125.79,22.62]
[1766431020965,0.05452163,125.84,125.81,0.05547397]
[1766431021376,7.20932163,125.84,125.81,0.05547397]
[1766431021576,24.33019851,125.84,125.77,22.62]
[1766431022167,21.90452163,125.84,125.77,22.62]
[1766431022368,24.33019851,125.84,125.77,22.62]
[1766431022566,24.33019851,125.84,125.79,0.05918003]
[1766431023479,7.1553,125.83,125.79,0.05918003]
[1766431025272,29.006,125.82,125.79,0.05918003]
[1766431025574,29.006,125.82,125.76,22.62]
[1766431025575,24.27567688,125.82,125.76,22.62]
[1766431026467,0.05485297,125.8,125.78,0.05042351]
[1766431027784,0.05485297,125.8,125.78,0.00042351]
[1766431029079,21.13485297,125.8,125.78,0.00042351]
[1766431029374,21.08,125.79,125.72,21.48]
[1766431029574,23.50567688,125.78,125.72,21.48]
[1766431030282,0.0544445,125.76,125.74,0.05768006]
[1766431031572,21.1344445,125.76,125.7,21.48]
[1766431031774,23.56012138,125.76,125.7,21.48]
[1766431032179,30.71952138,125.76,125.7,21.48]
[1766431032376,21.1344445,125.76,125.7,21.48]
[1766431032574,21.1344445,125.76,125.72,0.05415715]
[1766431034878,0.0544445,125.76,125.72,0.05415715]
[1766431035081,0.0544445,125.76,125.72,21.53415715]
[1766431039583,0.0044445,125.76,125.73,21.48]
[1766431042194,30.66277688,125.8,125.73,21.48]
[1766431042195,23.50567688,125.8,125.74,21.48]
[1766431043390,0.05248954,125.78,125.76,0.05870258]
[1766431046295,23.50567688,125.82,125.76,21.53870258]
[1766431046494,23.50567688,125.84,125.76,21.48]
[1766431047392,0.05975721,125.81,125.79,0.05173725]
[1766431047698,2.42567688,125.85,125.79,21.53173725]
[1766431048493,117.42567688,125.88,125.82,21.48]
[1766431048697,0.05273819,125.86,125.84,0.06027669]
[1766431049093,23.55841507,125.86,125.79,28.6372]
[1766431049296,23.50567688,125.86,125.8,21.48]
[1766431050105,0.0530997,125.84,125.82,0.05151862]
[1766431050514,23.87877658,125.84,125.78,21.88]
[1766431050813,23.87877658,125.84,125.77,29.0383]
[1766431051609,23.87877658,125.84,125.79,0.05703426]
[1766431051813,2.42567688,125.82,125.79,0.05703426]
[1766431054415,21.4530997,125.84,125.79,0.05703426]
[1766431054615,2.42567688,125.82,125.79,0.05703426]
[1766431055623,23.87877658,125.84,125.79,0.05703426]
[1766431058721,31.03357658,125.84,125.79,0.05703426]
[1766431061625,24.86567688,125.8,125.73,21.67]
[1766431062123,24.86567688,125.8,125.74,28.8304]
[1766431062526,0.05276743,125.78,125.76,0.05326055]
[1766431062731,0.05276743,125.78,125.71,207.73327688]
[1766431062732,2.47844431,125.78,125.73,7.1607]
[1766431063727,24.91844431,125.78,125.74,0.05619434]
[1766431068122,22.49276743,125.78,125.74,0.05619434]
[1766431068324,24.91844431,125.78,125.74,0.05619434]
[1766431069143,2.47844431,125.78,125.74,0.05619434]
[1766431069333,0.05276743,125.78,125.74,21.72619434]
[1766431070235,0.05276743,125.78,125.74,28.88649434]
[1766431070734,2.42567688,125.81,125.75,21.67]
[1766431071628,32.02157688,125.82,125.75,28.8298]
[1766431071937,0.05523169,125.79,125.77,0.05184031]
[1766431072525,24.86567688,125.82,125.77,0.05184031]
[1766431073440,22.44,125.82,125.77,0.05184031]
[1766431073738,0.05016814,125.81,125.77,21.72184031]
[1766431077633,0.05016814,125.81,125.77,28.88044031]
[1766431080436,0.05016814,125.81,125.77,21.72184031]
[1766431081643,0.05016814,125.81,125.77,28.88044031]
[1766431081852,7.1548,125.84,125.77,21.72184031]
[1766431082036,22.44,125.85,125.77,21.72184031]
[1766431082236,22.44,125.85,125.77,21.67]
[1766431082542,22.44,125.84,125.77,21.67]
[1766431082740,0.05479701,125.82,125.79,0.06113705]
[1766431083240,0.05479701,125.82,125.73,115.1825164]
[1766431083241,26.28671341,125.82,125.71,21.67]
[1766431083441,26.2319164,125.82,125.72,21.67]
[1766431083741,7.1576,125.79,125.73,21.67]
[1766431084048,29.5976,125.79,125.73,21.67]
[1766431084349,0.05682702,125.77,125.75,0.05828338]
[1766431085736,0.05682702,125.77,125.72,20.53]
[1766431086848,0.05682702,125.77,125.73,20.58653759]
[1766431089041,0.05682702,125.77,125.73,27.74753759]
[1766431089244,22.35,125.84,125.75,20.53]
[1766431089841,22.35,125.84,125.77,27.6886]
[1766431090052,22.35,125.84,125.77,20.53]
[1766431090346,0.05800382,125.82,125.79,0.05116536]
[1766431093042,22.40800382,125.82,125.79,0.00116536]
[1766431093947,0.05800382,125.82,125.79,0.00116536]
[1766431096141,22.40800382,125.82,125.79,0.00116536]
[1766431096745,0.05800382,125.82,125.79,0.00116536]
[1766431102858,0.05800382,125.82,125.79,7.15866536]
[1766431103050,10.9456164,125.86,125.79,20.53116536]
[1766431103051,26.1419164,125.86,125.79,20.53116536]
[1766431103258,22.35,125.86,125.79,20.53116536]
[1766431104165,0.05298118,125.84,125.79,20.53116536]
[1766431104548,0.05298118,125.84,125.8,7.1567]
[1766431107670,22.40298118,125.84,125.79,0.00116536]
[1766431107977,0.05298118,125.84,125.79,20.53116536]
[1766431108564,0.05298118,125.84,125.8,7.1569]
[1766431108764,0.05298118,125.84,125.8,27.6869]
[1766431109071,0.05298118,125.84,125.81,20.53]
[1766431110765,0.05298118,125.84,125.81,27.6864]
[1766431111371,32.9344164,125.88,125.81,27.6864]
[1766431112378,0.05548719,125.86,125.83,0.0563816]
[1766431113078,22.04548719,125.86,125.79,20.61]
[1766431113276,25.7819164,125.86,125.79,20.61]
[1766431113976,0.05923179,125.84,125.81,0.05081762]
[1766431116374,21.47923179,125.84,125.81,0.05081762]
[1766431116570,21.47923179,125.84,125.81,0.00081762]
[1766431116975,28.63403179,125.84,125.81,0.00081762]
[1766431117772,21.47923179,125.84,125.81,0.00081762]
[1766431123190,0.05923179,125.84,125.81,0.00081762]
[1766431126286,25.2119164,125.88,125.82,7.1558]
[1766431126479,21.42,125.88,125.82,29.0358]
[1766431127389,0.05785517,125.86,125.84,0.05703145]
[1766431128488,21.42,125.9,125.84,29.09163145]
[1766431129385,0.05687212,125.88,125.84,29.09163145]
[1766431130086,21.47687212,125.88,125.84,0.05703145]
[1766431130390,21.47687212,125.88,125.8,21.88]
[1766431130391,25.26878852,125.88,125.8,21.88]
[1766431130588,21.42,125.86,125.79,101.0371]
[1766431131089,28.5725,125.89,125.82,21.88]
[1766431131284,0.05534022,125.87,125.84,0.06013894]
[1766431134691,0.05534022,125.87,125.84,7.21483894]
[1766431134897,21.42,125.91,125.84,21.94013894]
[1766431135895,0.06007337,125.89,125.84,21.94013894]
[1766431136692,0.06007337,125.89,125.85,29.0339]
[1766431141504,0.06007337,125.89,125.86,7.1533]
[1766431141692,0.06007337,125.89,125.85,21.88]
[1766431142595,0.06007337,125.89,125.86,7.1536]
[1766431143495,0.06007337,125.89,125.85,29.0342]
[1766431147901,0.06007337,125.89,125.86,7.1536]
[1766431148299,0.06007337,125.89,125.86,29.2636]
[1766431148603,23.55449852,125.93,125.87,22.11]
[1766431149206,30.70419852,125.93,125.87,22.11]
[1766431149602,0.05204791,125.91,125.89,0.05283444]
[1766431150707,23.60654643,125.91,125.84,7.1542]
[1766431150906,23.55449852,125.91,125.84,29.2642]
[1766431151592,30.70549852,125.91,125.84,29.2642]
[1766431151797,0.05126146,125.89,125.86,0.05545057]
[1766431158211,0.05126146,125.89,125.86,22.16545057]
[1766431158407,0.05126146,125.89,125.86,29.31905057]
[1766431158613,0.00126146,125.89,125.87,115.95]
[1766431158811,0.00126146,125.89,125.88,22.11]
[1766431159022,23.55449852,125.96,125.9,22.11]
[1766431160112,0.0573322,125.94,125.92,0.05522333]
[1766431161109,2.48183072,125.94,125.88,22.11]
[1766431162112,2.48183072,125.94,125.9,0.05608729]
[1766431162416,0.0573322,125.94,125.9,0.05608729]
[1766431164318,0.0573322,125.94,125.9,22.16608729]
[1766431165915,0.0573322,125.94,125.9,0.05608729]
[1766431167913,2.48183072,125.94,125.9,0.05608729]
[1766431168117,0.0573322,125.94,125.9,29.31738729]
[1766431172213,22.36,126.0,125.94,20.8]
[1766431172514,24.78449852,125.98,125.92,20.8]
[1766431173010,24.78449852,125.98,125.93,7.1496]
[1766431173209,0.05790471,125.97,125.94,0.06041957]
[1766431178123,20.98,126.0,125.94,21.16041957]
[1766431178324,20.98,126.0,125.94,21.1]
[1766431179026,0.05043808,125.98,125.96,0.05689792]
[1766431192335,0.00043808,125.98,125.96,21.15689792]
[1766431192843,0.00043808,125.98,125.96,28.30469792]
[1766431193634,0.00043808,125.98,125.96,21.15689792]
[1766431194333,0.00043808,125.98,125.96,28.30479792]
[1766431196027,23.40449852,126.01,125.97,7.1473]
[1766431196431,2.42449852,126.01,125.97,7.1473]
[1766431196624,2.42449852,126.02,125.97,7.1473]
[1766431196827,23.40449852,126.02,125.97,7.1473]
[1766431197119,0.05615804,126.01,125.98,0.05081188]
[1766431199134,2.42449852,126.0,125.93,132.3147]
[1766431199333,23.40449852,126.0,125.93,132.3147]
[1766431199937,23.40449852,126.0,125.92,111.2226]
[1766431199938,23.40449852,126.0,125.95,7.1481]
[1766431200137,0.05128572,125.99,125.96,0.06011714]
[1766431200327,23.40449852,125.98,125.92,21.1]
[1766431201437,0.05575101,125.96,125.94,0.05287786]
[1766431206248,20.63575101,125.96,125.94,0.00287786]
[1766431206440,20.63575101,125.96,125.91,93.82]
[1766431206641,24.42008415,125.96,125.9,21.64489931]
[1766431206836,24.42008415,125.96,125.88,0.43049]
[1766431207041,20.58,125.95,125.88,0.43049]
[1766431207341,20.58,125.95,125.9,0.05068148]
[1766431207539,0.05794855,125.93,125.9,0.05068148]
[1766431209150,31.51233314,125.96,125.91,21.92]
[1766431210249,0.05104659,125.95,125.91,21.92]
[1766431210546,20.58,125.94,125.9,0.05068148]
[1766431213447,0.05104659,125.95,125.9,21.97068148]
[1766431217256,20.58,126.0,125.91,21.92]
[1766431217644,3.78433314,125.99,125.9,93.8]
[1766431217951,20.58,125.96,125.9,93.8]
[1766431218345,0.05578079,125.94,125.92,0.05072855]
[1766431219860,20.58,125.98,125.92,0.05072855]
[1766431220048,20.58,125.98,125.92,21.97072855]
[1766431220845,0.05211732,125.96,125.92,21.97072855]
[1766431221551,0.05211732,125.96,125.92,29.12082855]
[1766431221749,0.05211732,125.96,125.93,21.92]
[1766431222755,0.05211732,125.96,125.92,7.20082855]
[1766431225060,0.05211732,125.96,125.92,21.97072855]
[1766431228457,20.63211732,125.96,125.92,0.05072855]
[1766431228857,27.78011732,125.96,125.92,0.05072855]
[1766431230058,28.0485,125.95,125.92,0.05072855]
[1766431230263,0.05211732,125.96,125.92,0.05072855]
[1766431230463,0.05211732,125.96,125.92,21.35072855]
[1766431233470,0.00211732,125.96,125.92,21.35072855]
[1766431234167,0.00211732,125.96,125.92,28.50092855]
[1766431235365,0.00211732,125.96,125.92,21.35072855]
[1766431237359,0.00211732,125.96,125.92,28.50072855]
[1766431237561,0.00211732,125.96,125.93,21.98]
[1766431238776,27.7255,126.01,125.93,21.98]
[1766431239161,27.7255,126.01,125.93,29.1291]
[1766431239365,27.7255,126.01,125.94,21.98]
[1766431239566,27.7255,126.01,125.96,0.05901923]
[1766431240974,7.1457,126.0,125.96,0.05901923]
[1766431242275,20.58,126.01,125.96,0.05901923]
[1766431245780,27.7251,126.01,125.96,0.05901923]
[1766431247378,20.58,126.0,125.96,0.05901923]
[1766431251880,20.58,125.99,125.92,29.1296]
[1766431252973,0.05429804,125.97,125.94,0.05712909]
[1766431254481,20.63429804,125.97,125.94,0.05712909]
[1766431256583,20.63429804,125.97,125.91,7.1508]
[1766431256782,20.58,125.95,125.88,22.41049]
[1766431257486,0.05210203,125.93,125.9,0.05494175]
[1766431257785,0.00210203,125.93,125.9,22.03494175]
[1766431260586,0.00210203,125.93,125.9,0.05494175]
[1766431260884,0.00210203,125.93,125.9,22.03494175]
[1766431261782,0.00210203,125.93,125.9,0.05494175]
[1766431262577,20.58210203,125.93,125.88,0.43049]
[1766431262778,20.58,125.91,125.84,21.98]
[1766431263285,27.7309,125.91,125.84,21.98]
[1766431263686,0.05160387,125.89,125.86,0.0513997]
[1766431266080,0.00160387,125.89,125.86,21.6913997]
[1766431266582,0.00160387,125.89,125.86,0.0513997]
[1766431268492,20.30160387,125.89,125.86,0.0013997]
[1766431268682,20.30160387,125.89,125.82,21.64]
[1766431268683,2.42482124,125.88,125.82,21.64]
[1766431269691,0.05942297,125.86,125.84,0.05120276]
[1766431276002,0.05942297,125.86,125.84,0.00120276]
[1766431276186,20.35942297,125.86,125.84,0.00120276]
[1766431276387,0.05942297,125.86,125.84,0.00120276]
[1766431283587,20.3,125.9,125.84,21.64120276]
[1766431283793,20.3,125.9,125.84,21.64]
[1766431284801,0.05029829,125.88,125.86,0.05777703]
[1766431287103,0.00029829,125.88,125.86,0.05777703]
[1766431290412,20.73029829,125.88,125.82,29.2453]
[1766431290605,20.73,125.88,125.82,29.2453]
[1766431291302,0.05727897,125.86,125.84,0.05547137]
[1766431293212,20.73,125.94,125.84,22.14547137]
[1766431293411,20.73,125.92,125.84,22.09]
[1766431293608,23.15482124,125.91,125.84,22.09]
[1766431293803,23.15482124,125.91,125.81,22.09]
[1766431294415,0.06098303,125.87,125.85,0.05659813]
[1766431296412,0.00098303,125.87,125.85,21.45659813]
[1766431297111,20.73,125.9,125.85,21.45659813]
[1766431297611,20.96,125.92,125.85,28.61059813]
[1766431297816,20.96,125.92,125.85,21.4]
[1766431298017,20.96,125.92,125.87,0.05924704]
[1766431298319,28.1108,125.91,125.87,0.05924704]
[1766431299808,20.96,125.91,125.87,0.05924704]
[1766431300209,111.1628,126.0,125.87,21.45924704]
[1766431300210,23.38482124,125.95,125.87,21.45924704]
[1766431300419,23.38482124,125.95,125.9,0.05616261]
[1766431300716,30.53332124,125.95,125.9,0.05616261]
[1766431301707,20.96,125.94,125.9,0.05616261]
[1766431302312,20.96,125.96,125.9,21.45616261]
[1766431303115,20.96,125.96,125.9,28.60736261]
[1766431305822,20.96,125.93,125.82,14.3109]
[1766431306017,23.38482124,125.93,125.84,132.6943]
[1766431306216,23.38482124,125.93,125.85,21.4]
[1766431306623,2.42482124,125.91,125.85,21.4]
[1766431306814,0.05248959,125.89,125.87,0.0544466]
[1766431307824,0.00248959,125.89,125.87,0.0544466]
[1766431308226,20.96,125.92,125.87,0.0544466]
[1766431308530,2.42482124,125.93,125.87,21.4544466]
[1766431309527,2.42482124,125.93,125.87,28.6074466]
[1766431309924,2.42482124,125.93,125.87,21.4544466]
[1766431310227,20.96,125.97,125.87,21.4544466]
[1766431310434,2.42482124,125.99,125.92,21.4]
[1766431310730,23.38482124,125.99,125.94,0.05324761]
[1766431311734,30.53132124,125.99,125.94,0.05324761]
[1766431312634,23.38482124,125.99,125.94,0.05324761]
[1766431314329,30.53112124,125.99,125.94,0.05324761]
[1766431317743,28.1063,125.99,125.94,0.05324761]
[1766431318933,2.42482124,126.17,126.06,111.0977]
[1766431319123,2.42482124,126.13,126.1,0.050128]
[1766431319326,2.42482124,126.11,126.05,21.4]
[1766431319525,2.42482124,126.13,126.05,21.4]
[1766431319739,204.7997,126.18,126.05,21.4]
[1766431319740,2.42482124,126.14,126.05,21.4]
[1766431320334,0.05719706,126.11,126.08,0.05613567]
[1766431322742,21.01719706,126.11,126.03,111.126]
[1766431323045,20.96,126.11,126.01,111.1404]
[1766431323241,20.96,126.09,126.0,111.15]
[1766431323542,93.78,126.08,125.99,132.556]
[1766431323738,0.05644968,126.05,126.02,0.0547602]
[1766431326043,93.76,126.06,126.02,7.1991602]
[1766431326934,0.05762893,126.05,126.02,7.1991602]
[1766431327952,0.05762893,126.05,126.02,0.0547602]
[1766431333653,21.53762893,126.05,126.02,0.0047602]
[1766431334047,23.11762893,126.05,126.02,0.0047602]
[1766431334443,23.11762893,126.05,125.97,0.02]
[1766431334444,21.48,126.04,125.97,0.02]
[1766431335542,21.53317101,126.02,125.97,0.02]
[1766431335849,21.48,126.0,125.93,7.1493]
[1766431336648,21.48,126.0,125.92,21.07]
[1766431336649,0.05765911,125.98,125.95,0.05223155]
[1766431336848,93.74,125.97,125.95,0.05223155]
[1766431340456,0.05765911,125.98,125.95,0.05223155]
[1766431340655,93.74,125.97,125.95,0.05223155]
[1766431341162,0.05765911,125.98,125.95,0.05223155]
[1766431341456,93.74,125.97,125.95,0.05223155]
[1766431346952,93.74,125.97,125.95,0.00223155]
[1766431348562,21.48,125.96,125.95,0.00223155]
[1766431353077,21.48,125.96,125.91,7.1507]
[1766431354176,0.05201449,125.95,125.92,0.05776076]
[1766431354373,56.6206,125.94,125.92,0.05776076]
[1766431354675,59.4256,125.93,125.92,0.05776076]
[1766431354974,26.2256,125.93,125.92,0.05776076]
[1766431355369,79.6746,125.93,125.92,0.05776076]
[1766431355575,65.5692,125.93,125.92,0.05776076]
[1766431355782,37.0644,125.93,125.92,0.05776076]
[1766431356376,22.4761,125.93,125.92,0.05776076]
[1766431357070,8.2635,125.93,125.92,0.05776076]
[1766431357271,93.78,125.94,125.92,0.05776076]
[1766431358488,0.05201449,125.95,125.92,7.20796076]
[1766431360186,0.05201449,125.95,125.92,0.05776076]
[1766431360984,0.05201449,125.95,125.92,18.91776076]
[1766431361583,0.05201449,125.95,125.92,0.05776076]
[1766431361890,19.04201449,125.95,125.88,18.86]
[1766431362690,19.04201449,125.95,125.9,7.1512]
[1766431362886,19.04201449,125.95,125.91,0.0514946]
[1766431363486,18.99,125.93,125.88,7.152]
[1766431363683,112.77,125.93,125.86,18.86]
[1766431363889,18.99,125.92,125.86,18.86]
[1766431364686,0.05630009,125.9,125.88,0.05074718]
[1766431365591,93.78,125.93,125.88,0.05074718]
[1766431365792,112.77,125.93,125.88,0.05074718]
[1766431366590,0.05677536,125.92,125.88,7.20314718]
[1766431366888,19.04677536,125.92,125.88,0.05074718]
[1766431367295,22.82940863,125.92,125.88,0.00074718]
[1766431368394,22.82940863,125.92,125.84,18.86]
[1766431368595,18.99,125.91,125.85,7.1541]
[1766431369483,0.05696194,125.89,125.87,0.05948157]
[1766431370689,18.99,125.87,125.8,18.86]
[1766431371197,18.99,125.87,125.81,7.1564]
[1766431371702,0.05968385,125.85,125.83,0.06019422]
[1766431377203,19.04968385,125.85,125.78,18.86]
[1766431377396,93.84,125.84,125.78,18.86]
[1766431378101,93.84,125.84,125.8,0.05845462]
[1766431378309,0.0583833,125.82,125.8,0.05845462]
[1766431380913,93.84,125.85,125.8,0.05845462]
[1766431381111,93.84,125.86,125.8,18.91845462]
[1766431381307,112.83,125.87,125.8,18.91845462]
[1766431381608,112.83,125.87,125.8,18.86]
[1766431381806,0.05285816,125.85,125.82,0.05470205]
[1766431384809,19.04285816,125.85,125.78,18.86]
[1766431385218,19.04285816,125.85,125.8,7.157]
[1766431385903,19.04285816,125.85,125.81,0.05933206]
[1766431386106,21.46959247,125.85,125.81,7.21563206]
[1766431388604,2.47959247,125.85,125.82,7.1558]
[1766431388998,18.18,125.89,125.82,19.04]
[1766431389208,18.18,125.92,125.85,19.04]
[1766431389406,2.42673431,125.93,125.87,19.04]
[1766431389805,18.18,125.97,125.89,19.04]
[1766431390009,111.1285,126.04,125.89,19.04]
[1766431390010,0.05947254,125.94,125.92,0.06082174]
[1766431390319,2.42673431,125.98,125.9,19.04]
[1766431390320,2.42673431,125.96,125.9,19.04]
[1766431391116,0.05337576,125.94,125.92,0.05080452]
[1766431391906,2.48011007,125.94,125.89,7.1515]
[1766431393018,2.48011007,125.94,125.9,0.05535096]
[1766431393815,20.66011007,125.94,125.9,0.05535096]
[1766431394221,2.42673431,125.93,125.9,0.05535096]
[1766431398305,20.60673431,125.93,125.85,112.88]
[1766431398525,2.42673431,125.89,125.83,19.04]
[1766431398907,20.60673431,125.89,125.83,19.04]
[1766431399316,0.05722326,125.87,125.85,0.05847]
[1766431400109,2.48395757,125.87,125.85,0.05847]
[1766431400306,0.05722326,125.87,125.82,93.84]
[1766431400708,2.48395757,125.87,125.8,26.1966]
[1766431400913,20.66395757,125.87,125.8,26.1966]
[1766431401315,20.66395757,125.87,125.82,0.0554792]
[1766431401623,18.23722326,125.87,125.82,0.0554792]
[1766431408132,18.23722326,125.87,125.79,100.9973]
[1766431408333,18.18,125.86,125.79,120.0373]
[1766431408527,20.60673431,125.88,125.8,19.04]
[1766431409220,0.05801274,125.85,125.83,0.05755494]
[1766431412628,18.18,125.89,125.83,7.21275494]
[1766431412821,2.42673431,125.9,125.83,19.09755494]
[1766431413021,20.60673431,125.9,125.83,19.09755494]
[1766431413632,0.05215677,125.88,125.83,19.09755494]
[1766431414334,0.05215677,125.88,125.85,7.1541]
[1766431416034,0.05215677,125.88,125.86,7.1535]
[1766431416336,0.05215677,125.88,125.86,7.20556337]
[1766431416833,0.00215677,125.88,125.86,7.20556337]
[1766431417938,0.00215677,125.88,125.86,0.05206337]
[1766431421828,0.00215677,125.88,125.86,7.20546337]
[1766431422331,20.75673431,125.92,125.87,7.153]
[1766431422629,2.42673431,125.92,125.87,25.273]
[1766431423236,0.05039047,125.91,125.87,25.273]
[1766431426631,0.00039047,125.91,125.88,18.12]
[1766431427735,0.00039047,125.91,125.89,7.1516]
[1766431427937,0.00039047,125.91,125.89,7.20335788]
[1766431429242,0.00039047,125.91,125.89,0.05175788]
[1766431435846,18.33039047,125.91,125.89,0.00175788]
[1766431437047,0.00039047,125.91,125.89,0.00175788]
[1766431449157,0.00039047,125.91,125.83,112.12]
[1766431449356,17.85,125.91,125.84,18.3]
[1766431449561,7.1514,125.9,125.84,25.4547]
[1766431450160,0.05455842,125.88,125.86,0.0579798]
[1766431458865,17.90455842,125.88,125.83,93.82]
[1766431459068,17.90455842,125.88,125.82,25.4559]
[1766431459868,17.90455842,125.88,125.84,0.05720649]
[1766431462370,17.90455842,125.88,125.82,7.1559]
[1766431463274,17.90455842,125.88,125.84,0.05004064]
[1766431464170,0.05455842,125.88,125.84,18.35004064]
[1766431465573,0.05455842,125.88,125.85,7.1541]
[1766431467772,0.00455842,125.88,125.85,18.3]